[Event "European Womens-ch 2025"]
[Site "Rhodes"]
[Date "2025.03.31"]
[Round "1.7"]
[White "Ushenina, Anna"]
[Black "Pavlidou, Ekaterini"]
[Result "1-0"]
[Annotator "RC"]
[ECO "A46"]
[WhiteElo "2428"]
[BlackElo "2160"]
[PlyCount "109"]
[EventDate "2025.03.29"]
[EventType "swiss"]
[EventCountry "GRE"]
[SourceTitle "playchess.com"]
[Source "ChessBase"]
[SourceQuality "1"]
[TimeControl "40/5400+30:1800+30"]

1. d4 {[%emt 0:00:09]} Nf6 {[%emt 0:00:35]} 2. Nf3 {[%emt 0:01:23]} e6 {[%emt 0:00:37]} 3. Bg5 {[%emt 0:01:24]} c5 {[%emt 0:03:27]} 4. e3 {[%emt 0:00:23]} Nc6 {[%emt 0:01:09]} 5. c3 {[%emt 0:03:06]} h6 {[%emt 0:03:58]} 6. Bh4 {[%emt 0:00:14]} g5 {[%emt 0:07:00]} 7. Bg3 {[%emt 0:00:32]} Qb6 {[%emt 0:06:00]} 8. Qc2 {[%emt 0:10:39]} Nh5 {[%emt 0:04:26]} 9. Nbd2 {[%emt 0:06:01]} Nxg3 {[%emt 0:02:17]} 10. hxg3 {[%emt 0:00:02]} cxd4 {[%emt 0:06:30]} 11. exd4 {[%emt 0:03:18]} Be7 {[%emt 0:02:54]} 12. Nc4 {[%emt 0:17:25]} Qc7 {[%emt 0:00:45]} 13. Ne3 {[%emt 0:07:49]} d5 {[%emt 0:07:00]} 14. Rh5 {[%emt 0:06:25]} Bd7 {[%emt 0:02:20]} 15. g4 {[%emt 0:09:05]} O-O-O {[%emt 0:05:49]} 16. O-O-O {[%emt 0:00:21]} Be8 {[%emt 0:02:37]} 17. Rh3 {[%emt 0:00:44]} f6 {[%emt 0:02:43]} 18. Bd3 {[%emt 0:00:09]} Bf7 {[%emt 0:01:40]} 19. Kb1 {[%emt 0:01:41]} Kb8 {[%emt 0:02:23]} 20. Bg6 {[%emt 0:01:44]} Bg8 {[%emt 0:00:42]} 21. Rdh1 {[%emt 0:04:53]} Bf8 {[%emt 0:00:11]} 22. Nf1 {[%emt 0:04:08]} Ne7 {[%emt 0:01:51]} 23. Bd3 {[%emt 0:00:11]} e5 {[%emt 0:16:26]} 24. N3d2 {[%emt 0:02:00]} Nc6 {[%emt 0:05:39]} 25. Nb3 {[%emt 0:02:21]} e4 {[%emt 0:05:42]} 26. Be2 {[%emt 0:00:08]} Rc8 {[%emt 0:02:26]} 27. Ne3 {[%emt 0:00:31]} a5 {[%emt 0:01:42]} 28. Nc1 {[%emt 0:00:43]} Ne7 {[%emt 0:01:23]} 29. Qb3 {[%emt 0:03:10]} Qd7 {[%emt 0:00:35]} 30. Bb5 {[%emt 0:00:41]} Qd8 {[%emt 0:00:26]} 31. Ne2 {[%emt 0:02:06]} Rc7 {[%emt 0:00:35]} 32. Qa4 {[%emt 0:00:56]} b6 {[%emt 0:01:24]} 33. Ng3 {[%emt 0:01:35]} Be6 {[%emt 0:01:05]} 34. Qb3 {[%emt 0:01:37]} Qc8 {[%emt 0:01:50]} 35. f3 {[%emt 0:02:02]} exf3 {[%emt 0:00:37]} 36. gxf3 {[%emt 0:00:00]} Ng6 {[%emt 0:01:04]} 37. Nh5 {[%emt 0:04:59]} Nf4 {[%emt 0:00:37]} 38. Nxf4 {[%emt 0:00:30]} gxf4 {[%emt 0:00:01]} 39. Nxd5 {[%emt 0:00:46]} Qd8 {[%emt 0:00:52]} 40. c4 {[%emt 0:00:00]} Bxd5 {[%emt 0:00:00]} 41. cxd5 {[%emt 0:00:13]} f5 {[%emt 0:04:14]} 42. Bd3 {[%emt 0:06:51]} Qf6 {[%emt 0:02:41]} 43. Bxf5 {[%emt 0:01:41]} Qxd4 {[%emt 0:03:26]} 44. Rd1 {[%emt 0:01:43]} Qc5 {[%emt 0:01:33]} 45. Rh2 {[%emt 0:09:50]} Be7 {[%emt 0:02:36]} 46. Rc2 {[%emt 0:02:39]} Qd6 {[%emt 0:03:02]} 47. Rdc1 {[%emt 0:09:18]} Rxc2 {[%emt 0:09:17]} 48. Rxc2 {[%emt 0:00:01]} Bd8 {[%emt 0:02:59]} 49. Rc8+ {[%emt 0:02:33]} Ka7 {[%emt 0:00:13]} 50. Qc4 {[%emt 0:00:54]} Re8 {[%emt 0:04:55]} 51. Qc6 {[%emt 0:01:49]} Re1+ {[%emt 0:00:52]} 52. Kc2 {[%emt 0:00:01]} Qxc6+ {[%emt 0:00:42]} 53. dxc6 {[%emt 0:00:04]} Bf6 {[%emt 0:00:36]} 54. c7 {[%emt 0:02:55]} Kb7 {[%emt 0:00:30]} 55. Rf8 {[%emt 0:00:04]} 1-0

[Event "European Womens-ch 2025"]
[Site "Rhodes"]
[Date "2025.03.31"]
[Round "1.8"]
[White "Yildiz, Elif Zeren"]
[Black "Stefanova, Antoaneta"]
[Result "1/2-1/2"]
[Annotator "RC"]
[ECO "C45"]
[WhiteElo "2160"]
[BlackElo "2426"]
[PlyCount "91"]
[EventDate "2025.03.29"]
[EventType "swiss"]
[EventCountry "GRE"]
[SourceTitle "playchess.com"]
[Source "ChessBase"]
[SourceQuality "1"]
[TimeControl "40/5400+30:1800+30"]

1. e4 {[%emt 0:00:04]} e5 {[%emt 0:00:07]} 2. Nf3 {[%emt 0:00:06]} Nc6 {[%emt 0:00:06]} 3. d4 {[%emt 0:00:05]} exd4 {[%emt 0:02:10]} 4. Nxd4 {[%emt 0:00:06]} Qf6 {[%emt 0:01:55]} 5. Nb5 {[%emt 0:00:11]} Bc5 {[%emt 0:15:30]} 6. Qf3 {[%emt 0:00:13]} Qxf3 {[%emt 0:07:04]} 7. gxf3 {[%emt 0:00:02]} Kd8 {[%emt 0:01:23]} 8. Be3 {[%emt 0:00:40]} Bxe3 {[%emt 0:07:46]} 9. fxe3 {[%emt 0:00:02]} a6 {[%emt 0:02:45]} 10. Nd4 {[%emt 0:00:05]} Nge7 {[%emt 0:00:07]} 11. Nc3 {[%emt 0:14:47]} Ne5 {[%emt 0:06:07]} 12. Be2 {[%emt 0:04:39]} d6 {[%emt 0:05:32]} 13. O-O-O {[%emt 0:05:00]} c5 {[%emt 0:04:32]} 14. Nb3 {[%emt 0:02:48]} Kc7 {[%emt 0:00:14]} 15. Rhg1 {[%emt 0:03:14]} g6 {[%emt 0:03:44]} 16. f4 {[%emt 0:10:46]} N5c6 {[%emt 0:01:54]} 17. Bc4 {[%emt 0:09:16]} Rf8 {[%emt 0:04:32]} 18. a4 {[%emt 0:08:55]} b6 {[%emt 0:04:38]} 19. Nd2 {[%emt 0:07:17]} Be6 {[%emt 0:06:29]} 20. Rg5 {[%emt 0:05:52]} Nb4 {[%emt 0:05:56]} 21. Bxe6 {[%emt 0:06:11]} fxe6 {[%emt 0:00:11]} 22. h4 {[%emt 0:01:45]} Rad8 {[%emt 0:05:47]} 23. h5 {[%emt 0:05:25]} d5 {[%emt 0:01:40]} 24. hxg6 {[%emt 0:02:49]} hxg6 {[%emt 0:00:46]} 25. a5 {[%emt 0:03:34]} bxa5 {[%emt 0:06:39]} 26. Nb3 {[%emt 0:00:35]} c4 {[%emt 0:02:18]} 27. Nc5 {[%emt 0:01:09]} Rd6 {[%emt 0:00:57]} 28. Re5 {[%emt 0:00:08]} Rf6 {[%emt 0:02:17]} 29. exd5 {[%emt 0:04:43]} Nexd5 {[%emt 0:00:45]} 30. Nxd5+ {[%emt 0:01:43]} exd5 {[%emt 0:00:47]} 31. c3 {[%emt 0:00:03]} Nd3+ {[%emt 0:00:41]} 32. Nxd3 {[%emt 0:00:05]} cxd3 {[%emt 0:00:03]} 33. Rxd3 {[%emt 0:00:22]} Rf5 {[%emt 0:00:41]} 34. Re7+ {[%emt 0:02:25]} Kc6 {[%emt 0:00:01]} 35. Ra7 {[%emt 0:01:16]} Kb6 {[%emt 0:00:05]} 36. Rg7 {[%emt 0:00:05]} Re6 {[%emt 0:01:17]} 37. Kc2 {[%emt 0:01:04]} a4 {[%emt 0:00:34]} 38. Rd4 {[%emt 0:01:21]} Rxe3 {[%emt 0:00:49]} 39. Rxg6+ {[%emt 0:00:08]} Kb5 {[%emt 0:00:30]} 40. Rd6 {[%emt 0:00:00]} Re2+ {[%emt 0:00:00]} 41. Kb1 {[%emt 0:08:09]} a3 {[%emt 0:08:41]} 42. R6xd5+ {[%emt 0:05:49]} Rxd5 {[%emt 0:00:12]} 43. Rxd5+ {[%emt 0:00:02]} Kc6 {[%emt 0:01:04]} 44. Ra5 {[%emt 0:00:05]} Rxb2+ {[%emt 0:02:46]} 45. Ka1 {[%emt 0:01:16]} Rb3 {[%emt 0:06:37]} 46. Ka2 {[%emt 0:03:28]} 1/2-1/2

[Event "European Womens-ch 2025"]
[Site "Rhodes"]
[Date "2025.03.31"]
[Round "1.9"]
[White "Khotenashvili, Bella"]
[Black "Eric, Jovana"]
[Result "1-0"]
[Annotator "RC"]
[ECO "D94"]
[WhiteElo "2418"]
[BlackElo "2147"]
[PlyCount "77"]
[EventDate "2025.03.29"]
[EventType "swiss"]
[EventCountry "GRE"]
[SourceTitle "playchess.com"]
[Source "ChessBase"]
[SourceQuality "1"]
[TimeControl "40/5400+30:1800+30"]

1. Nf3 {[%emt 0:00:07]} d5 {[%emt 0:00:09]} 2. e3 {[%emt 0:00:05]} Nf6 {[%emt 0:00:13]} 3. c4 {[%emt 0:00:14]} c6 {[%emt 0:00:13]} 4. d4 {[%emt 0:00:14]} g6 {[%emt 0:00:29]} 5. Nc3 {[%emt 0:01:10]} Bg7 {[%emt 0:00:21]} 6. a4 {[%emt 0:02:06]} O-O {[%emt 0:02:41]} 7. Qb3 {[%emt 0:04:18]} Qb6 {[%emt 0:12:55]} 8. Qa3 {[%emt 0:05:11]} Re8 {[%emt 0:02:01]} 9. a5 {[%emt 0:01:13]} Qd8 {[%emt 0:00:39]} 10. Qb3 {[%emt 0:10:15]} e6 {[%emt 0:06:45]} 11. Be2 {[%emt 0:00:52]} Nbd7 {[%emt 0:00:40]} 12. O-O {[%emt 0:01:20]} Ne4 {[%emt 0:03:37]} 13. Nxe4 {[%emt 0:16:35]} dxe4 {[%emt 0:00:07]} 14. Nd2 {[%emt 0:00:02]} e5 {[%emt 0:03:20]} 15. d5 {[%emt 0:01:17]} Nc5 {[%emt 0:25:37]} 16. Qa3 {[%emt 0:02:12]} Bf8 {[%emt 0:00:33]} 17. b4 {[%emt 0:03:13]} Na6 {[%emt 0:03:47]} 18. d6 {[%emt 0:04:27]} Bxd6 {[%emt 0:09:36]} 19. c5 {[%emt 0:00:31]} Be7 {[%emt 0:00:05]} 20. Nxe4 {[%emt 0:01:04]} Be6 {[%emt 0:03:57]} 21. Bb2 {[%emt 0:05:24]} Bd5 {[%emt 0:10:32]} 22. Rad1 {[%emt 0:07:55]} Qc8 {[%emt 0:01:40]} 23. Nd6 {[%emt 0:00:50]} Bxd6 {[%emt 0:00:05]} 24. cxd6 {[%emt 0:00:05]} Qe6 {[%emt 0:00:27]} 25. f3 {[%emt 0:19:19]} Rad8 {[%emt 0:00:57]} 26. b5 {[%emt 0:01:57]} Nb8 {[%emt 0:01:46]} 27. Qb4 {[%emt 0:04:05]} cxb5 {[%emt 0:01:33]} 28. Bxb5 {[%emt 0:00:23]} Nc6 {[%emt 0:01:18]} 29. Qc5 {[%emt 0:00:35]} a6 {[%emt 0:05:14]} 30. Rxd5 {[%emt 0:02:35]} axb5 {[%emt 0:00:05]} 31. Rfd1 {[%emt 0:00:21]} Nxa5 {[%emt 0:02:40]} 32. Rxe5 {[%emt 0:02:05]} Qb3 {[%emt 0:01:05]} 33. Rxe8+ {[%emt 0:00:59]} Rxe8 {[%emt 0:00:05]} 34. Qd4 {[%emt 0:00:17]} f6 {[%emt 0:00:08]} 35. d7 {[%emt 0:01:09]} Rd8 {[%emt 0:00:04]} 36. Rd3 {[%emt 0:00:09]} Qa2 {[%emt 0:02:13]} 37. Qxf6 {[%emt 0:00:31]} Qb1+ {[%emt 0:00:14]} 38. Kf2 {[%emt 0:00:04]} Qc2+ {[%emt 0:00:15]} 39. Kg3 {[%emt 0:00:05]} 1-0

[Event "European Womens-ch 2025"]
[Site "Rhodes"]
[Date "2025.03.31"]
[Round "1.10"]
[White "Piddubna, Bozhena"]
[Black "Kulon, Klaudia"]
[Result "1-0"]
[Annotator "RC"]
[ECO "E68"]
[WhiteElo "2145"]
[BlackElo "2401"]
[PlyCount "101"]
[EventDate "2025.03.29"]
[EventType "swiss"]
[EventCountry "GRE"]
[SourceTitle "playchess.com"]
[Source "ChessBase"]
[SourceQuality "1"]
[TimeControl "40/5400+30:1800+30"]

1. d4 {[%emt 0:00:03]} Nf6 {[%emt 0:00:07]} 2. Nf3 {[%emt 0:00:31]} g6 {[%emt 0:00:16]} 3. c4 {[%emt 0:00:16]} Bg7 {[%emt 0:00:07]} 4. g3 {[%emt 0:00:10]} O-O {[%emt 0:00:10]} 5. Bg2 {[%emt 0:00:11]} d6 {[%emt 0:00:04]} 6. Nc3 {[%emt 0:00:38]} Nbd7 {[%emt 0:00:27]} 7. O-O {[%emt 0:00:27]} e5 {[%emt 0:00:10]} 8. e4 {[%emt 0:00:42]} exd4 {[%emt 0:00:10]} 9. Nxd4 {[%emt 0:00:14]} Re8 {[%emt 0:00:31]} 10. Re1 {[%emt 0:01:39]} Nc5 {[%emt 0:00:57]} 11. f3 {[%emt 0:06:30]} Nfd7 {[%emt 0:06:50]} 12. Be3 {[%emt 0:12:39]} Ne5 {[%emt 0:02:50]} 13. Bf1 {[%emt 0:00:35]} a5 {[%emt 0:03:17]} 14. Nb3 {[%emt 0:04:28]} Be6 {[%emt 0:07:12]} 15. f4 {[%emt 0:10:38]} Nxc4 {[%emt 0:18:47]} 16. Bxc4 {[%emt 0:04:18]} Bxc4 {[%emt 0:00:29]} 17. Nxc5 {[%emt 0:01:03]} dxc5 {[%emt 0:00:12]} 18. Qa4 {[%emt 0:13:10]} b5 {[%emt 0:12:36]} 19. Nxb5 {[%emt 0:06:06]} Rxe4 {[%emt 0:00:13]} 20. Bf2 {[%emt 0:01:40]} Rxe1+ {[%emt 0:01:34]} 21. Rxe1 {[%emt 0:00:15]} Be6 {[%emt 0:00:19]} 22. Bxc5 {[%emt 0:11:21]} Qd2 {[%emt 0:11:18]} 23. Bf2 {[%emt 0:06:20]} Rb8 {[%emt 0:01:12]} 24. Rd1 {[%emt 0:03:09]} Qe2 {[%emt 0:02:56]} 25. Nd4 {[%emt 0:09:04]} Qc4 {[%emt 0:05:21]} 26. Qxc4 {[%emt 0:02:12]} Bxc4 {[%emt 0:00:02]} 27. Nc6 {[%emt 0:00:30]} Ra8 {[%emt 0:01:04]} 28. b3 {[%emt 0:00:39]} Be6 {[%emt 0:00:23]} 29. Bd4 {[%emt 0:02:53]} Bf8 {[%emt 0:00:29]} 30. Bf6 {[%emt 0:01:14]} Bd6 {[%emt 0:02:19]} 31. Be7 {[%emt 0:01:18]} Bxe7 {[%emt 0:00:38]} 32. Nxe7+ {[%emt 0:00:01]} Kf8 {[%emt 0:00:06]} 33. Nd5 {[%emt 0:01:05]} Ra7 {[%emt 0:00:55]} 34. Nc3 {[%emt 0:00:44]} Ra6 {[%emt 0:00:09]} 35. Kf2 {[%emt 0:00:39]} Bg4 {[%emt 0:02:07]} 36. Rc1 {[%emt 0:00:29]} Re6 {[%emt 0:00:40]} 37. Rc2 {[%emt 0:00:34]} Bf5 {[%emt 0:00:28]} 38. Rc1 {[%emt 0:00:14]} Rc6 {[%emt 0:03:11]} 39. Ne2 {[%emt 0:00:38]} Rd6 {[%emt 0:00:04]} 40. Rxc7 {[%emt 0:00:00]} Rd2 {[%emt 0:00:00]} 41. Ke3 {[%emt 0:02:23]} Rxa2 {[%emt 0:01:53]} 42. Nd4 {[%emt 0:05:55]} Bg4 {[%emt 0:03:56]} 43. Rc2 {[%emt 0:01:02]} Ra3 {[%emt 0:03:29]} 44. Ke4 {[%emt 0:09:42]} Kg7 {[%emt 0:02:57]} 45. Ke5 {[%emt 0:02:27]} h5 {[%emt 0:01:41]} 46. Rc7 {[%emt 0:04:51]} Ra2 {[%emt 0:02:14]} 47. f5 {[%emt 0:06:17]} Rxh2 {[%emt 0:11:15]} 48. Ne6+ {[%emt 0:00:16]} Kh6 {[%emt 0:00:36]} 49. Rc8 {[%emt 0:01:49]} Kh7 {[%emt 0:04:21]} 50. Ng5+ {[%emt 0:00:36]} Kh6 {[%emt 0:01:10]} 51. Kf6 {[%emt 0:00:07]} 1-0

[Event "European Womens-ch 2025"]
[Site "Rhodes"]
[Date "2025.03.31"]
[Round "1.11"]
[White "Beydullayeva, Govhar"]
[Black "Zaksaite, Salomeja"]
[Result "1-0"]
[Annotator "RC"]
[ECO "D85"]
[WhiteElo "2400"]
[BlackElo "2137"]
[PlyCount "63"]
[EventDate "2025.03.29"]
[EventType "swiss"]
[EventCountry "GRE"]
[SourceTitle "playchess.com"]
[Source "ChessBase"]
[SourceQuality "1"]
[TimeControl "40/5400+30:1800+30"]

1. d4 {[%emt 0:00:03]} Nf6 {[%emt 0:01:42]} 2. c4 {[%emt 0:00:05]} g6 {[%emt 0:00:07]} 3. Nc3 {[%emt 0:00:08]} d5 {[%emt 0:00:28]} 4. cxd5 {[%emt 0:00:07]} Nxd5 {[%emt 0:00:04]} 5. e4 {[%emt 0:00:04]} Nxc3 {[%emt 0:00:04]} 6. bxc3 {[%emt 0:00:01]} Bg7 {[%emt 0:00:06]} 7. Nf3 {[%emt 0:00:15]} c5 {[%emt 0:00:43]} 8. h3 {[%emt 0:00:10]} O-O {[%emt 0:00:52]} 9. Be2 {[%emt 0:00:09]} cxd4 {[%emt 0:08:46]} 10. cxd4 {[%emt 0:01:04]} Nc6 {[%emt 0:00:04]} 11. Be3 {[%emt 0:01:26]} Qa5+ {[%emt 0:01:21]} 12. Bd2 {[%emt 0:00:14]} Qa3 {[%emt 0:00:12]} 13. d5 {[%emt 0:00:37]} Ne5 {[%emt 0:12:18]} 14. O-O {[%emt 0:00:45]} f5 {[%emt 0:05:55]} 15. Nxe5 {[%emt 0:13:45]} Bxe5 {[%emt 0:00:07]} 16. Rb1 {[%emt 0:00:43]} Qd6 {[%emt 0:02:27]} 17. Bb4 {[%emt 0:14:04]} Qf6 {[%emt 0:00:18]} 18. f4 {[%emt 0:03:12]} Bd4+ {[%emt 0:00:19]} 19. Kh1 {[%emt 0:00:13]} fxe4 {[%emt 0:01:29]} 20. Bxe7 {[%emt 0:00:19]} Qxe7 {[%emt 0:00:06]} 21. Qxd4 {[%emt 0:00:03]} b6 {[%emt 0:47:53]} 22. d6 {[%emt 0:13:46]} Qf6 {[%emt 0:00:22]} 23. Qxe4 {[%emt 0:00:52]} Bf5 {[%emt 0:02:30]} 24. Qd5+ {[%emt 0:01:07]} Kg7 {[%emt 0:03:44]} 25. Rbc1 {[%emt 0:03:38]} Rad8 {[%emt 0:01:44]} 26. Rc7+ {[%emt 0:05:52]} Rf7 {[%emt 0:00:42]} 27. Rxf7+ {[%emt 0:12:10]} Qxf7 {[%emt 0:00:03]} 28. Qe5+ {[%emt 0:00:07]} Qf6 {[%emt 0:01:34]} 29. Rd1 {[%emt 0:02:48]} Be6 {[%emt 0:00:19]} 30. Rc1 {[%emt 0:01:44]} Rc8 {[%emt 0:04:20]} 31. Rc7+ {[%emt 0:01:07]} Rxc7 {[%emt 0:00:56]} 32. dxc7 {[%emt 0:00:02]} 1-0

[Event "European Womens-ch 2025"]
[Site "Rhodes"]
[Date "2025.03.31"]
[Round "1.12"]
[White "Ciolacu, Alessia-Mihaela"]
[Black "Danielian, Elina"]
[Result "0-1"]
[Annotator "RC"]
[ECO "A37"]
[WhiteElo "2136"]
[BlackElo "2398"]
[PlyCount "80"]
[EventDate "2025.03.29"]
[EventType "swiss"]
[EventCountry "GRE"]
[SourceTitle "playchess.com"]
[Source "ChessBase"]
[SourceQuality "1"]
[TimeControl "40/5400+30:1800+30"]

1. Nf3 {[%emt 0:00:05]} c5 {[%emt 0:00:33]} 2. c4 {[%emt 0:00:18]} g6 {[%emt 0:00:56]} 3. g3 {[%emt 0:00:30]} Bg7 {[%emt 0:00:07]} 4. Bg2 {[%emt 0:00:16]} Nc6 {[%emt 0:00:05]} 5. Nc3 {[%emt 0:00:39]} e6 {[%emt 0:01:15]} 6. h4 {[%emt 0:03:07]} h6 {[%emt 0:02:11]} 7. d3 {[%emt 0:10:18]} Nge7 {[%emt 0:00:25]} 8. h5 {[%emt 0:03:54]} g5 {[%emt 0:00:06]} 9. Nh2 {[%emt 0:01:00]} d5 {[%emt 0:03:37]} 10. Ng4 {[%emt 0:29:47]} f5 {[%emt 0:11:08]} 11. cxd5 {[%emt 0:09:09]} exd5 {[%emt 0:00:09]} 12. Nh2 {[%emt 0:00:09]} d4 {[%emt 0:07:10]} 13. Nb1 {[%emt 0:02:45]} Be6 {[%emt 0:00:48]} 14. Nd2 {[%emt 0:01:38]} O-O {[%emt 0:01:26]} 15. a3 {[%emt 0:02:07]} Rc8 {[%emt 0:06:41]} 16. Qc2 {[%emt 0:01:53]} b6 {[%emt 0:09:17]} 17. Qa4 {[%emt 0:02:52]} Nd5 {[%emt 0:04:02]} 18. Nc4 {[%emt 0:05:09]} Qe7 {[%emt 0:05:44]} 19. O-O {[%emt 0:04:27]} Rfd8 {[%emt 0:02:51]} 20. Bd2 {[%emt 0:09:41]} Qb7 {[%emt 0:04:34]} 21. Qd1 {[%emt 0:00:56]} Qf7 {[%emt 0:00:47]} 22. Qa4 {[%emt 0:04:15]} Qb7 {[%emt 0:09:55]} 23. Qc2 {[%emt 0:01:00]} a6 {[%emt 0:02:33]} 24. e4 {[%emt 0:01:13]} dxe3 {[%emt 0:00:10]} 25. fxe3 {[%emt 0:00:20]} Qc7 {[%emt 0:00:25]} 26. e4 {[%emt 0:01:19]} Nd4 {[%emt 0:02:21]} 27. Qd1 {[%emt 0:00:51]} fxe4 {[%emt 0:00:25]} 28. dxe4 {[%emt 0:00:37]} Ne7 {[%emt 0:00:57]} 29. Rc1 {[%emt 0:02:11]} Qxg3 {[%emt 0:00:55]} 30. Rc3 {[%emt 0:02:27]} Qb8 {[%emt 0:01:39]} 31. Ne3 {[%emt 0:00:24]} Rf8 {[%emt 0:10:35]} 32. Nd5 {[%emt 0:00:34]} Qd6 {[%emt 0:03:06]} 33. Nxe7+ {[%emt 0:00:31]} Qxe7 {[%emt 0:00:04]} 34. a4 {[%emt 0:00:35]} Rcd8 {[%emt 0:00:46]} 35. Qe1 {[%emt 0:00:28]} Rxf1+ {[%emt 0:00:36]} 36. Nxf1 {[%emt 0:00:26]} Bg4 {[%emt 0:00:44]} 37. Ng3 {[%emt 0:00:34]} Be5 {[%emt 0:00:11]} 38. Re3 {[%emt 0:00:34]} Nc2 {[%emt 0:01:09]} 39. Qf2 {[%emt 0:00:23]} Rxd2 {[%emt 0:02:49]} 40. Qxd2 {[%emt 0:00:00]} Nxe3 {[%emt 0:00:00]} 0-1

[Event "European Womens-ch 2025"]
[Site "Rhodes"]
[Date "2025.03.31"]
[Round "1.13"]
[White "Daulyte-Cornette, Deimante"]
[Black "Chelushkina, Irina"]
[Result "1/2-1/2"]
[Annotator "RC"]
[ECO "B54"]
[WhiteElo "2389"]
[BlackElo "2134"]
[PlyCount "113"]
[EventDate "2025.03.29"]
[EventType "swiss"]
[EventCountry "GRE"]
[SourceTitle "playchess.com"]
[Source "ChessBase"]
[SourceQuality "1"]
[TimeControl "40/5400+30:1800+30"]

1. e4 {[%emt 0:00:04]} c5 {[%emt 0:00:24]} 2. Nf3 {[%emt 0:00:12]} Nc6 {[%emt 0:00:36]} 3. Nc3 {[%emt 0:00:23]} d6 {[%emt 0:03:02]} 4. d4 {[%emt 0:00:32]} cxd4 {[%emt 0:00:05]} 5. Nxd4 {[%emt 0:00:05]} e5 {[%emt 0:00:08]} 6. Nf5 {[%emt 0:00:34]} g6 {[%emt 0:07:49]} 7. Ne3 {[%emt 0:00:20]} Nf6 {[%emt 0:01:03]} 8. Nc4 {[%emt 0:07:04]} Nd4 {[%emt 0:15:51]} 9. Be3 {[%emt 0:14:20]} b5 {[%emt 0:03:28]} 10. Bxd4 {[%emt 0:08:50]} bxc4 {[%emt 0:00:06]} 11. Be3 {[%emt 0:00:05]} Be6 {[%emt 0:01:04]} 12. Bg5 {[%emt 0:00:58]} Be7 {[%emt 0:08:51]} 13. Be2 {[%emt 0:07:24]} Rb8 {[%emt 0:03:21]} 14. Rb1 {[%emt 0:03:51]} O-O {[%emt 0:01:03]} 15. O-O {[%emt 0:01:08]} Qa5 {[%emt 0:06:50]} 16. Qd2 {[%emt 0:03:36]} Qc5 {[%emt 0:03:00]} 17. Be3 {[%emt 0:06:53]} Qc6 {[%emt 0:09:46]} 18. Bxa7 {[%emt 0:05:41]} Rb7 {[%emt 0:01:20]} 19. Be3 {[%emt 0:00:31]} Rfb8 {[%emt 0:00:04]} 20. b3 {[%emt 0:05:55]} Rc7 {[%emt 0:03:29]} 21. Bxc4 {[%emt 0:09:26]} Bxc4 {[%emt 0:16:32]} 22. bxc4 {[%emt 0:00:06]} Ra8 {[%emt 0:00:22]} 23. Bg5 {[%emt 0:05:15]} Nxe4 {[%emt 0:00:22]} 24. Nxe4 {[%emt 0:00:08]} Qxe4 {[%emt 0:00:03]} 25. Bxe7 {[%emt 0:00:13]} Rxe7 {[%emt 0:00:03]} 26. Qxd6 {[%emt 0:00:22]} Ree8 {[%emt 0:00:03]} 27. Qd5 {[%emt 0:05:11]} Qxc2 {[%emt 0:00:24]} 28. Rb7 {[%emt 0:00:16]} Qf5 {[%emt 0:00:11]} 29. c5 {[%emt 0:01:59]} Red8 {[%emt 0:02:05]} 30. Qb3 {[%emt 0:01:32]} Rac8 {[%emt 0:00:10]} 31. Qc3 {[%emt 0:04:29]} e4 {[%emt 0:03:10]} 32. Rb5 {[%emt 0:01:55]} Rd5 {[%emt 0:01:45]} 33. Rc1 {[%emt 0:03:20]} Qd7 {[%emt 0:01:24]} 34. Qb3 {[%emt 0:01:49]} Rd3 {[%emt 0:00:40]} 35. Qb1 {[%emt 0:00:47]} Rd2 {[%emt 0:02:38]} 36. Rb8 {[%emt 0:01:24]} Rxb8 {[%emt 0:01:10]} 37. Qxb8+ {[%emt 0:00:05]} Kg7 {[%emt 0:00:03]} 38. Qb3 {[%emt 0:02:00]} Qd4 {[%emt 0:00:36]} 39. Rf1 {[%emt 0:00:35]} Qxc5 {[%emt 0:01:00]} 40. a4 {[%emt 0:00:00]} h5 {[%emt 0:00:00]} 41. h4 {[%emt 0:01:33]} Rd3 {[%emt 0:12:01]} 42. Qb2+ {[%emt 0:01:02]} Kh7 {[%emt 0:00:01]} 43. Qf6 {[%emt 0:04:27]} Rd7 {[%emt 0:05:57]} 44. Re1 {[%emt 0:04:52]} Qb4 {[%emt 0:05:21]} 45. Ra1 {[%emt 0:01:21]} Qa5 {[%emt 0:00:05]} 46. Kh2 {[%emt 0:08:31]} Qc7+ {[%emt 0:02:20]} 47. Kg1 {[%emt 0:00:20]} Rd6 {[%emt 0:02:39]} 48. Qg5 {[%emt 0:00:56]} Qc3 {[%emt 0:03:20]} 49. Rc1 {[%emt 0:00:20]} Qd4 {[%emt 0:02:21]} 50. a5 {[%emt 0:07:39]} Rd5 {[%emt 0:01:23]} 51. Qe7 {[%emt 0:00:05]} Rf5 {[%emt 0:00:11]} 52. Rf1 {[%emt 0:00:07]} Qc4 {[%emt 0:01:33]} 53. Qa3 {[%emt 0:04:20]} e3 {[%emt 0:00:54]} 54. Qxe3 {[%emt 0:00:18]} Rxa5 {[%emt 0:00:05]} 55. g3 {[%emt 0:00:18]} Qd5 {[%emt 0:00:28]} 56. Qc3 {[%emt 0:00:26]} Rc5 {[%emt 0:00:48]} 57. Qf6 {[%emt 0:00:41]} 1/2-1/2

[Event "European Womens-ch 2025"]
[Site "Rhodes"]
[Date "2025.03.31"]
[Round "1.14"]
[White "Cornileau, Juliette"]
[Black "Mkrtchian, Lilit"]
[Result "0-1"]
[Annotator "RC"]
[ECO "C03"]
[WhiteElo "2130"]
[BlackElo "2388"]
[PlyCount "86"]
[EventDate "2025.03.29"]
[EventType "swiss"]
[EventCountry "GRE"]
[SourceTitle "playchess.com"]
[Source "ChessBase"]
[SourceQuality "1"]
[TimeControl "40/5400+30:1800+30"]

1. e4 {[%emt 0:00:06]} e6 {[%emt 0:00:42]} 2. d4 {[%emt 0:00:16]} d5 {[%emt 0:00:06]} 3. Nd2 {[%emt 0:00:20]} Be7 {[%emt 0:00:28]} 4. Ngf3 {[%emt 0:15:56]} Nf6 {[%emt 0:00:24]} 5. e5 {[%emt 0:00:31]} Nfd7 {[%emt 0:00:24]} 6. c4 {[%emt 0:03:01]} c5 {[%emt 0:07:14]} 7. dxc5 {[%emt 0:08:09]} Nxc5 {[%emt 0:08:57]} 8. cxd5 {[%emt 0:16:00]} exd5 {[%emt 0:15:14]} 9. Nb3 {[%emt 0:01:22]} Nxb3 {[%emt 0:00:54]} 10. Qxb3 {[%emt 0:00:57]} O-O {[%emt 0:00:29]} 11. Bd3 {[%emt 0:05:07]} Nc6 {[%emt 0:04:30]} 12. O-O {[%emt 0:03:19]} Bg4 {[%emt 0:14:55]} 13. Bb1 {[%emt 0:07:20]} Bxf3 {[%emt 0:08:59]} 14. Qxf3 {[%emt 0:00:07]} Nxe5 15. Bxh7+ Kxh7 {[%emt 0:00:23]} 16. Qh5+ {[%emt 0:07:02]} Kg8 {[%emt 0:00:06]} 17. Qxe5 {[%emt 0:00:03]} Bf6 {[%emt 0:08:06]} 18. Qf5 {[%emt 0:02:38]} Re8 {[%emt 0:01:10]} 19. Qd3 {[%emt 0:04:15]} Qd7 {[%emt 0:03:48]} 20. Rb1 {[%emt 0:01:54]} Rac8 {[%emt 0:00:27]} 21. Be3 {[%emt 0:01:19]} d4 {[%emt 0:01:33]} 22. Bf4 {[%emt 0:06:10]} Qd5 {[%emt 0:06:59]} 23. Rbe1 {[%emt 0:10:26]} Qxa2 {[%emt 0:03:01]} 24. Qb5 {[%emt 0:00:27]} Rxe1 {[%emt 0:05:36]} 25. Rxe1 {[%emt 0:00:04]} b6 {[%emt 0:03:05]} 26. h4 {[%emt 0:05:12]} Bxh4 {[%emt 0:04:57]} 27. Bc7 {[%emt 0:01:11]} Bf6 {[%emt 0:00:48]} 28. Qf5 {[%emt 0:00:44]} Rf8 {[%emt 0:00:39]} 29. Bd6 {[%emt 0:00:14]} Rd8 {[%emt 0:00:18]} 30. Bc7 {[%emt 0:00:20]} Rf8 {[%emt 0:00:31]} 31. Bd6 {[%emt 0:00:04]} Ra8 {[%emt 0:00:21]} 32. g4 {[%emt 0:01:25]} Qa5 {[%emt 0:00:44]} 33. Qe4 {[%emt 0:00:28]} Rd8 {[%emt 0:00:11]} 34. Bc7 {[%emt 0:00:07]} Rc8 {[%emt 0:00:21]} 35. Bf4 {[%emt 0:00:54]} g6 {[%emt 0:00:53]} 36. Rd1 {[%emt 0:00:30]} Qa4 {[%emt 0:00:16]} 37. Re1 {[%emt 0:00:27]} Qd7 {[%emt 0:00:36]} 38. Bg3 {[%emt 0:00:33]} d3 {[%emt 0:00:13]} 39. Rd1 {[%emt 0:00:25]} d2 {[%emt 0:00:42]} 40. Qe2 {[%emt 0:00:00]} Rc1 {[%emt 0:00:00]} 41. Bf4 {[%emt 0:01:26]} Bxb2 {[%emt 0:01:58]} 42. Kh2 {[%emt 0:00:43]} Rxd1 {[%emt 0:00:30]} 43. Qxd1 {[%emt 0:00:07]} Bc3 {[%emt 0:00:11]} 0-1